[Event "Titled Tuesday Blitz March 08 Early 2022"]
[White "De Arruda, Leandro Formes"]
[Black "Aaditya Dhingra"]
[WhiteFideId "22722009"]
[BlackFideId "25678191"]
[WhiteElo "1852"]
[BlackElo "1849"]
[Result "0-1"]
[Round "02"]
[TimeControl "180+1"]
[Date "2022.03.09"]
[WhiteClock "0:00:01"]
[BlackClock "0:00:12"]

1. d4 {[%clk 0:03:00]}  Nf6 {[%clk 0:02:59]} 2. Nf3 {[%clk 0:03:01]}  e6 {[%clk 0:02:57]} 3. e3 {[%clk 0:03:01]}  b6 {[%clk 0:02:56]} 4. Bd3 {[%clk 0:03:01]}  Bb7 {[%clk 0:02:56]} 5. Nbd2 {[%clk 0:03:01]}  c5 {[%clk 0:02:56]} 6. O-O {[%clk 0:03:01]}  Nc6 {[%clk 0:02:55]} 7. c3 {[%clk 0:02:59]}  d6 {[%clk 0:02:53]} 8. Re1 {[%clk 0:02:59]}  Be7 {[%clk 0:02:52]} 9. Qe2 {[%clk 0:02:59]}  O-O {[%clk 0:02:50]} 10. b3 {[%clk 0:02:56]}  e5 {[%clk 0:02:50]} 11. Bb2 {[%clk 0:02:51]}  Re8 {[%clk 0:02:47]} 12. e4 {[%clk 0:02:46]}  Bf8 {[%clk 0:02:45]} 13. d5 {[%clk 0:02:44]}  Ne7 {[%clk 0:02:41]} 14. a4 {[%clk 0:02:42]}  a6 {[%clk 0:02:38]} 15. Nc4 {[%clk 0:02:37]}  Ng6 {[%clk 0:02:33]} 16. g3 {[%clk 0:02:34]}  Rb8 {[%clk 0:02:25]} 17. Kg2 {[%clk 0:02:27]}  Bc8 {[%clk 0:02:22]} 18. Rh1 {[%clk 0:02:22]}  Nh5 {[%clk 0:02:19]} 19. Bc1 {[%clk 0:02:16]}  h6 {[%clk 0:01:42]} 20. Nfxe5 {[%clk 0:01:57]}  Nxe5 {[%clk 0:01:40]} 21. Nxe5 {[%clk 0:01:52]}  Rxe5 {[%clk 0:01:38]} 22. f4 {[%clk 0:01:50]}  Nxf4+ {[%clk 0:01:22]} 23. Bxf4 {[%clk 0:01:49]}  Re8 {[%clk 0:01:20]} 24. Qd2 {[%clk 0:01:39]}  Be7 {[%clk 0:01:07]} 25. Raf1 {[%clk 0:01:33]}  Bf6 {[%clk 0:00:59]} 26. c4 {[%clk 0:01:16]}  Be5 {[%clk 0:00:50]} 27. Rf2 {[%clk 0:01:04]}  Bd4 {[%clk 0:00:44]} 28. Be3 {[%clk 0:01:02]}  Bxe3 {[%clk 0:00:41]} 29. Qxe3 {[%clk 0:01:03]}  Re5 {[%clk 0:00:39]} 30. Qf4 {[%clk 0:01:02]}  Qd7 {[%clk 0:00:35]} 31. Rhf1 {[%clk 0:00:40]}  Qh3+ {[%clk 0:00:28]} 32. Kg1 {[%clk 0:00:39]}  f6 {[%clk 0:00:28]} 33. Be2 {[%clk 0:00:30]}  Bd7 {[%clk 0:00:25]} 34. Bf3 {[%clk 0:00:29]}  Rbe8 {[%clk 0:00:20]} 35. Bg2 {[%clk 0:00:28]}  Qh5 {[%clk 0:00:18]} 36. Qd2 {[%clk 0:00:20]}  a5 {[%clk 0:00:16]} 37. Qd3 {[%clk 0:00:18]}  Bh3 {[%clk 0:00:14]} 38. Bxh3 {[%clk 0:00:15]}  Qxh3 {[%clk 0:00:14]} 39. Rf4 {[%clk 0:00:15]}  Qh5 {[%clk 0:00:12]} 40. Kg2 {[%clk 0:00:12]}  Qg6 {[%clk 0:00:13]} 41. Re1 {[%clk 0:00:10]}  Kf7 {[%clk 0:00:13]} 42. Qf3 {[%clk 0:00:09]}  Ke7 {[%clk 0:00:13]} 43. h3 {[%clk 0:00:08]}  Kd7 {[%clk 0:00:13]} 44. g4 {[%clk 0:00:08]}  Kc7 {[%clk 0:00:13]} 45. Re2 {[%clk 0:00:07]}  Qh7 {[%clk 0:00:14]} 46. Qd3 {[%clk 0:00:06]}  R8e7 {[%clk 0:00:13]} 47. Qf3 {[%clk 0:00:06]}  Qg8 {[%clk 0:00:13]} 48. Qd3 {[%clk 0:00:05]}  Qe8 {[%clk 0:00:13]} 49. Qf3 {[%clk 0:00:05]}  h5 {[%clk 0:00:13]} 50. Qd3 {[%clk 0:00:04]}  hxg4 {[%clk 0:00:13]} 51. Rxg4 {[%clk 0:00:04]}  g5 {[%clk 0:00:12]} 52. Qf3 {[%clk 0:00:03]}  f5 {[%clk 0:00:12]} 53. Rxg5 {[%clk 0:00:01]}  fxe4 {[%clk 0:00:12]} 0-1


[Site "https://www.chess.com"]

[Event "Titled Tuesday Blitz March 08 Early 2022"]
[White "Dejmek, Mark"]
[Black "Urbina Perez, Juan Antonio"]
[WhiteFideId "2017628"]
[BlackFideId "2217368"]
[WhiteElo "2253"]
[BlackElo "2192"]
[Result "0-1"]
[Round "02"]
[TimeControl "180+1"]
[Date "2022.03.09"]
[WhiteClock "0:00:04"]
[BlackClock "0:01:00"]

1. Nf3 {[%clk 0:02:13]}  Nf6 {[%clk 0:02:57]} 2. g3 {[%clk 0:02:12]}  g6 {[%clk 0:02:55]} 3. b4 {[%clk 0:02:11]}  Bg7 {[%clk 0:02:56]} 4. Bb2 {[%clk 0:02:11]}  O-O {[%clk 0:02:57]} 5. Bg2 {[%clk 0:02:11]}  a5 {[%clk 0:02:57]} 6. b5 {[%clk 0:02:11]}  c6 {[%clk 0:02:56]} 7. c4 {[%clk 0:02:09]}  Qb6 {[%clk 0:02:54]} 8. a4 {[%clk 0:02:08]}  d5 {[%clk 0:02:53]} 9. cxd5 {[%clk 0:02:03]}  cxb5 {[%clk 0:02:53]} 10. axb5 {[%clk 0:01:58]}  Qxb5 {[%clk 0:02:51]} 11. Ra2 {[%clk 0:01:57]}  Nxd5 {[%clk 0:02:49]} 12. Bxg7 {[%clk 0:01:55]}  Kxg7 {[%clk 0:02:48]} 13. O-O {[%clk 0:01:51]}  Nb4 {[%clk 0:02:44]} 14. Na3 {[%clk 0:01:40]}  Qf5 {[%clk 0:02:30]} 15. Qa1+ {[%clk 0:01:29]}  Kg8 {[%clk 0:02:27]} 16. Rb2 {[%clk 0:01:26]}  N8c6 {[%clk 0:02:27]} 17. Nc4 {[%clk 0:01:20]}  Be6 {[%clk 0:02:25]} 18. Nb6 {[%clk 0:01:13]}  Ra6 {[%clk 0:02:20]} 19. Na4 {[%clk 0:01:11]}  Rd8 {[%clk 0:02:16]} 20. d3 {[%clk 0:01:10]}  Qf6 {[%clk 0:02:12]} 21. Nc5 {[%clk 0:01:04]}  Raa8 {[%clk 0:02:12]} 22. Nxe6 {[%clk 0:01:03]}  Qxe6 {[%clk 0:02:12]} 23. Re1 {[%clk 0:00:59]}  Rac8 {[%clk 0:02:03]} 24. Qa4 {[%clk 0:00:58]}  b6 {[%clk 0:02:01]} 25. h4 {[%clk 0:00:56]}  h5 {[%clk 0:02:00]} 26. Ng5 {[%clk 0:00:53]}  Qf6 {[%clk 0:01:57]} 27. Rbb1 {[%clk 0:00:46]}  Nd4 {[%clk 0:01:52]} 28. e3 {[%clk 0:00:38]}  Ne6 {[%clk 0:01:48]} 29. d4 {[%clk 0:00:37]}  Nxg5 {[%clk 0:01:46]} 30. hxg5 {[%clk 0:00:36]}  Qxg5 {[%clk 0:01:47]} 31. Rbc1 {[%clk 0:00:34]}  Qf6 {[%clk 0:01:42]} 32. Rxc8 {[%clk 0:00:34]}  Rxc8 {[%clk 0:01:43]} 33. Qb5 {[%clk 0:00:34]}  Rc2 {[%clk 0:01:38]} 34. Rf1 {[%clk 0:00:34]}  Kg7 {[%clk 0:01:30]} 35. d5 {[%clk 0:00:32]}  Qd6 {[%clk 0:01:21]} 36. e4 {[%clk 0:00:31]}  Qc5 {[%clk 0:01:20]} 37. Qd7 {[%clk 0:00:29]}  Qd6 {[%clk 0:01:18]} 38. Qb5 {[%clk 0:00:28]}  Rc5 {[%clk 0:01:17]} 39. Qe2 {[%clk 0:00:27]}  f6 {[%clk 0:01:17]} 40. Qe3 {[%clk 0:00:26]}  Rc2 {[%clk 0:01:13]} 41. f4 {[%clk 0:00:24]}  Qc5 {[%clk 0:01:12]} 42. Qxc5 {[%clk 0:00:24]}  Rxc5 {[%clk 0:01:13]} 43. Re1 {[%clk 0:00:24]}  a4 {[%clk 0:01:13]} 44. Rb1 {[%clk 0:00:22]}  a3 {[%clk 0:01:09]} 45. e5 {[%clk 0:00:10]}  a2 {[%clk 0:01:08]} 46. Ra1 {[%clk 0:00:10]}  fxe5 {[%clk 0:01:08]} 47. fxe5 {[%clk 0:00:10]}  Rc2 {[%clk 0:01:06]} 48. Be4 {[%clk 0:00:09]}  Re2 {[%clk 0:01:06]} 49. d6 {[%clk 0:00:06]}  exd6 {[%clk 0:01:02]} 50. exd6 {[%clk 0:00:06]}  Rxe4 {[%clk 0:01:00]} 51. Kf2 {[%clk 0:00:04]}  Rd4 {[%clk 0:01:00]} 0-1


[Site "https://www.chess.com"]

[Event "Titled Tuesday Blitz March 08 Early 2022"]
[White "Derige Kane, Yan"]
[Black "Zakharov, Alexander S."]
[WhiteFideId "20665431"]
[BlackFideId "4120132"]
[WhiteElo "2169"]
[BlackElo "2417"]
[Result "0-1"]
[Round "02"]
[TimeControl "180+1"]
[Date "2022.03.09"]
[WhiteClock "0:00:32"]
[BlackClock "0:00:23"]

1. Nf3 {[%clk 0:03:00]}  d5 {[%clk 0:02:58]} 2. g3 {[%clk 0:03:01]}  Nf6 {[%clk 0:02:56]} 3. Bg2 {[%clk 0:03:01]}  g6 {[%clk 0:02:52]} 4. O-O {[%clk 0:03:02]}  Bg7 {[%clk 0:02:52]} 5. c4 {[%clk 0:03:03]}  c6 {[%clk 0:02:48]} 6. cxd5 {[%clk 0:03:03]}  cxd5 {[%clk 0:02:48]} 7. d4 {[%clk 0:03:03]}  O-O {[%clk 0:02:48]} 8. Nc3 {[%clk 0:03:04]}  Nc6 {[%clk 0:02:46]} 9. Bf4 {[%clk 0:03:00]}  Ne4 {[%clk 0:02:43]} 10. Nxe4 {[%clk 0:02:54]}  dxe4 {[%clk 0:02:43]} 11. Ne5 {[%clk 0:02:54]}  Nxd4 {[%clk 0:02:24]} 12. Bxe4 {[%clk 0:02:53]}  Ne6 {[%clk 0:02:24]} 13. Qc1 {[%clk 0:02:43]}  Qd4 {[%clk 0:02:09]} 14. Nc6 {[%clk 0:01:18]}  Qxe4 {[%clk 0:01:43]} 15. Nxe7+ {[%clk 0:01:15]}  Kh8 {[%clk 0:01:42]} 16. f3 {[%clk 0:01:15]}  Qxe2 {[%clk 0:01:32]} 17. Nd5 {[%clk 0:01:01]}  Nd4 {[%clk 0:01:13]} 18. Qc3 {[%clk 0:00:54]}  Qe6 {[%clk 0:00:38]} 19. Nc7 {[%clk 0:00:49]}  Ne2+ {[%clk 0:00:36]} 20. Kh1 {[%clk 0:00:48]}  Nxc3 {[%clk 0:00:33]} 21. Nxe6 {[%clk 0:00:48]}  Bxe6 {[%clk 0:00:32]} 22. bxc3 {[%clk 0:00:47]}  Bxc3 {[%clk 0:00:32]} 23. Rac1 {[%clk 0:00:45]}  Bf6 {[%clk 0:00:30]} 24. a4 {[%clk 0:00:44]}  Rac8 {[%clk 0:00:29]} 25. Rb1 {[%clk 0:00:43]}  b6 {[%clk 0:00:29]} 26. a5 {[%clk 0:00:43]}  bxa5 {[%clk 0:00:29]} 27. Rb5 {[%clk 0:00:43]}  Bc3 {[%clk 0:00:27]} 28. Rc1 {[%clk 0:00:39]}  Bb4 {[%clk 0:00:26]} 29. Rd1 {[%clk 0:00:34]}  Rfd8 {[%clk 0:00:25]} 30. Be5+ {[%clk 0:00:32]}  Kg8 {[%clk 0:00:24]} 31. Rf1 {[%clk 0:00:32]}  Rd2 {[%clk 0:00:23]} 0-1


[Site "https://www.chess.com"]

[Event "Titled Tuesday Blitz March 08 Early 2022"]
[White "Derraugh, Geordie"]
[Black "Funderburg, John T"]
[WhiteFideId "2603950"]
[BlackFideId "2004992"]
[WhiteElo "2116"]
[BlackElo "2023"]
[Result "1-0"]
[Round "02"]
[TimeControl "180+1"]
[Date "2022.03.09"]
[WhiteClock "0:01:14"]
[BlackClock "0:00:01"]

1. e4 {[%clk 0:03:00]}  e6 {[%clk 0:01:59]} 2. d4 {[%clk 0:02:59]}  d5 {[%clk 0:01:58]} 3. Nd2 {[%clk 0:02:59]}  Nc6 {[%clk 0:01:58]} 4. Ngf3 {[%clk 0:02:59]}  Nf6 {[%clk 0:01:57]} 5. e5 {[%clk 0:02:58]}  Nd7 {[%clk 0:01:58]} 6. Bd3 {[%clk 0:02:58]}  f6 {[%clk 0:01:58]} 7. exf6 {[%clk 0:02:58]}  Qxf6 {[%clk 0:01:59]} 8. c3 {[%clk 0:02:56]}  Bd6 {[%clk 0:01:58]} 9. O-O {[%clk 0:02:55]}  O-O {[%clk 0:01:59]} 10. Re1 {[%clk 0:02:56]}  e5 {[%clk 0:02:00]} 11. Qb3 {[%clk 0:02:47]}  Nb6 {[%clk 0:01:36]} 12. Ne4 {[%clk 0:02:44]}  Qf7 {[%clk 0:01:08]} 13. Neg5 {[%clk 0:02:32]}  Qh5 {[%clk 0:01:06]} 14. Bxh7+ {[%clk 0:02:24]}  Kh8 {[%clk 0:01:05]} 15. dxe5 {[%clk 0:02:11]}  Bc5 {[%clk 0:00:34]} 16. Bd3 {[%clk 0:01:56]}  Bg4 {[%clk 0:00:31]} 17. Qc2 {[%clk 0:01:48]}  Bxf3 {[%clk 0:00:23]} 18. Nxf3 {[%clk 0:01:48]}  Rxf3 {[%clk 0:00:19]} 19. gxf3 {[%clk 0:01:48]}  Qxf3 {[%clk 0:00:19]} 20. Qe2 {[%clk 0:01:44]}  Qh3 {[%clk 0:00:17]} 21. Qf1 {[%clk 0:01:42]}  Qh4 {[%clk 0:00:15]} 22. Be3 {[%clk 0:01:36]}  Nxe5 {[%clk 0:00:15]} 23. Qg2 {[%clk 0:01:35]}  Bd6 {[%clk 0:00:12]} 24. Be2 {[%clk 0:01:18]}  Rf8 {[%clk 0:00:10]} 25. Rad1 {[%clk 0:01:16]}  c6 {[%clk 0:00:10]} 26. Rd4 {[%clk 0:01:16]}  Qh7 {[%clk 0:00:07]} 27. Rf4 {[%clk 0:01:14]}  Rxf4 {[%clk 0:00:01]} 28. Bxf4 {[%clk 0:01:14]} 1-0


[Site "https://www.chess.com"]

[Event "Titled Tuesday Blitz March 08 Early 2022"]
[White "Donchenko, Alexander"]
[Black "Rangel, Daniel"]
[WhiteFideId "24603295"]
[BlackFideId "2124475"]
[WhiteElo "2539"]
[BlackElo "2225"]
[Result "1-0"]
[Round "02"]
[TimeControl "180+1"]
[Date "2022.03.09"]
[WhiteClock "0:00:25"]
[BlackClock "0:00:08"]

1. e4 {[%clk 0:02:53]}  c6 {[%clk 0:02:59]} 2. d4 {[%clk 0:02:52]}  d5 {[%clk 0:03:00]} 3. exd5 {[%clk 0:02:53]}  cxd5 {[%clk 0:03:00]} 4. Bd3 {[%clk 0:02:53]}  Nf6 {[%clk 0:02:59]} 5. h3 {[%clk 0:02:54]}  g6 {[%clk 0:02:58]} 6. Nf3 {[%clk 0:02:50]}  Bg7 {[%clk 0:02:57]} 7. O-O {[%clk 0:02:50]}  Bf5 {[%clk 0:02:57]} 8. Bb5+ {[%clk 0:02:48]}  Bd7 {[%clk 0:02:53]} 9. a4 {[%clk 0:02:41]}  O-O {[%clk 0:02:51]} 10. Re1 {[%clk 0:02:39]}  Nc6 {[%clk 0:02:38]} 11. c3 {[%clk 0:02:34]}  Ne4 {[%clk 0:02:34]} 12. Nbd2 {[%clk 0:02:32]}  Nd6 {[%clk 0:02:23]} 13. Bf1 {[%clk 0:02:26]}  Re8 {[%clk 0:02:05]} 14. Ne5 {[%clk 0:02:17]}  Nxe5 {[%clk 0:01:47]} 15. dxe5 {[%clk 0:02:18]}  Nf5 {[%clk 0:01:47]} 16. Nf3 {[%clk 0:02:17]}  e6 {[%clk 0:01:44]} 17. Bg5 {[%clk 0:02:13]}  Qb6 {[%clk 0:01:41]} 18. Qd2 {[%clk 0:02:10]}  Rac8 {[%clk 0:01:16]} 19. a5 {[%clk 0:02:06]}  Qc7 {[%clk 0:01:07]} 20. Qf4 {[%clk 0:01:56]}  a6 {[%clk 0:01:06]} 21. Qd2 {[%clk 0:01:45]}  Qc5 {[%clk 0:00:52]} 22. g4 {[%clk 0:01:29]}  Ne7 {[%clk 0:00:49]} 23. Be3 {[%clk 0:01:27]}  Qc7 {[%clk 0:00:49]} 24. Bb6 {[%clk 0:01:24]}  Qb8 {[%clk 0:00:49]} 25. h4 {[%clk 0:01:04]}  Bb5 {[%clk 0:00:39]} 26. Bxb5 {[%clk 0:01:02]}  axb5 {[%clk 0:00:40]} 27. h5 {[%clk 0:00:56]}  Rc4 {[%clk 0:00:38]} 28. Bd4 {[%clk 0:00:52]}  Nc6 {[%clk 0:00:28]} 29. b3 {[%clk 0:00:51]}  Nxd4 {[%clk 0:00:27]} 30. cxd4 {[%clk 0:00:50]}  Rc6 {[%clk 0:00:26]} 31. Rec1 {[%clk 0:00:48]}  Rec8 {[%clk 0:00:24]} 32. Ne1 {[%clk 0:00:48]}  Bf8 {[%clk 0:00:22]} 33. Nd3 {[%clk 0:00:46]}  Qa7 {[%clk 0:00:14]} 34. Qe3 {[%clk 0:00:40]}  Rxc1+ {[%clk 0:00:13]} 35. Nxc1 {[%clk 0:00:39]}  Bb4 {[%clk 0:00:13]} 36. Nd3 {[%clk 0:00:36]}  Bc3 {[%clk 0:00:12]} 37. Rc1 {[%clk 0:00:36]}  Rc6 {[%clk 0:00:12]} 38. Nc5 {[%clk 0:00:34]}  Qxa5 {[%clk 0:00:09]} 39. Qxc3 {[%clk 0:00:27]}  Qxc3 {[%clk 0:00:09]} 40. Rxc3 {[%clk 0:00:28]}  b6 {[%clk 0:00:08]} 41. Ne4 {[%clk 0:00:27]}  Rxc3 {[%clk 0:00:05]} 42. Nxc3 {[%clk 0:00:28]}  Kf8 {[%clk 0:00:05]} 43. Nxb5 {[%clk 0:00:28]}  Ke7 {[%clk 0:00:05]} 44. h6 {[%clk 0:00:28]}  Kd7 {[%clk 0:00:06]} 45. Kg2 {[%clk 0:00:28]}  Kc6 {[%clk 0:00:06]} 46. Nd6 {[%clk 0:00:28]}  f5 {[%clk 0:00:07]} 47. Kf3 {[%clk 0:00:26]}  fxg4+ {[%clk 0:00:03]} 48. Kxg4 {[%clk 0:00:26]}  Kd7 {[%clk 0:00:03]} 49. Kg5 {[%clk 0:00:26]}  Ke7 {[%clk 0:00:04]} 50. Nc8+ {[%clk 0:00:25]}  Kd7 {[%clk 0:00:04]} 51. Nxb6+ {[%clk 0:00:25]}  Kc6 {[%clk 0:00:05]} 52. Nc8 {[%clk 0:00:25]}  Kb5 {[%clk 0:00:06]} 53. Kf6 {[%clk 0:00:25]}  Kb4 {[%clk 0:00:06]} 54. Kxe6 {[%clk 0:00:25]}  g5 {[%clk 0:00:06]} 55. Kxd5 {[%clk 0:00:25]}  g4 {[%clk 0:00:07]} 56. e6 {[%clk 0:00:25]}  Kxb3 {[%clk 0:00:07]} 57. e7 {[%clk 0:00:25]}  g3 {[%clk 0:00:08]} 58. fxg3 {[%clk 0:00:25]} 1-0


[Site "https://www.chess.com"]

[Event "Titled Tuesday Blitz March 08 Early 2022"]
[White "Dounis, Alexandros"]
[Black "Neiksans, Arturs"]
[WhiteFideId "4213238"]
[BlackFideId "11601388"]
[WhiteElo "2204"]
[BlackElo "2447"]
[Result "0-1"]
[Round "02"]
[TimeControl "180+1"]
[Date "2022.03.09"]
[WhiteClock "0:00:20"]
[BlackClock "0:00:55"]

1. Nf3 {[%clk 0:02:58]}  f5 {[%clk 0:02:57]} 2. d3 {[%clk 0:02:58]}  Nc6 {[%clk 0:02:56]} 3. e4 {[%clk 0:02:58]}  e5 {[%clk 0:02:56]} 4. Nc3 {[%clk 0:02:58]}  Nf6 {[%clk 0:02:55]} 5. d4 {[%clk 0:02:54]}  exd4 {[%clk 0:02:48]} 6. Nxd4 {[%clk 0:02:50]}  fxe4 {[%clk 0:02:48]} 7. Bg5 {[%clk 0:02:24]}  Bb4 {[%clk 0:02:44]} 8. Bxf6 {[%clk 0:02:22]}  Qxf6 {[%clk 0:02:40]} 9. Nb5 {[%clk 0:02:16]}  O-O {[%clk 0:02:26]} 10. Bc4+ {[%clk 0:01:59]}  Kh8 {[%clk 0:02:26]} 11. O-O {[%clk 0:02:00]}  Qe5 {[%clk 0:02:09]} 12. Nd5 {[%clk 0:01:54]}  a6 {[%clk 0:02:09]} 13. Nbxc7 {[%clk 0:01:44]}  Bd6 {[%clk 0:02:09]} 14. f4 {[%clk 0:01:33]}  exf3 {[%clk 0:02:09]} 15. Rxf3 {[%clk 0:01:30]}  Qxh2+ {[%clk 0:01:57]} 16. Kf1 {[%clk 0:01:21]}  Rxf3+ {[%clk 0:01:18]} 17. Qxf3 {[%clk 0:01:21]}  Ne5 {[%clk 0:01:18]} 18. Qh3 {[%clk 0:00:45]}  Qxh3 {[%clk 0:01:18]} 19. gxh3 {[%clk 0:00:45]}  Rb8 {[%clk 0:01:18]} 20. Be2 {[%clk 0:00:35]}  b5 {[%clk 0:01:17]} 21. Ne8 {[%clk 0:00:35]}  Bc5 {[%clk 0:01:09]} 22. b4 {[%clk 0:00:34]}  Bf8 {[%clk 0:01:07]} 23. Re1 {[%clk 0:00:29]}  Bb7 {[%clk 0:01:04]} 24. Nec7 {[%clk 0:00:30]}  Bd6 {[%clk 0:01:02]} 25. Bd1 {[%clk 0:00:27]}  Rc8 {[%clk 0:00:58]} 26. c3 {[%clk 0:00:20]}  g6 {[%clk 0:00:57]} 27. Bb3 {[%clk 0:00:19]}  Kg7 {[%clk 0:00:56]} 28. Ne8+ {[%clk 0:00:20]}  Rxe8 {[%clk 0:00:55]} 0-1


[Site "https://www.chess.com"]

[Event "Titled Tuesday Blitz March 08 Early 2022"]
[White "Dovbnia, Nikita"]
[Black "Manelyuk, Daniil"]
[WhiteFideId "54104599"]
[BlackFideId "44173920"]
[WhiteElo "2111"]
[BlackElo "2222"]
[Result "0-1"]
[Round "02"]
[TimeControl "180+1"]
[Date "2022.03.09"]
[WhiteClock "0:00:33"]
[BlackClock "0:00:52"]

1. Nf3 {[%clk 0:03:00]}  Nf6 {[%clk 0:02:58]} 2. g3 {[%clk 0:03:00]}  g6 {[%clk 0:02:58]} 3. Bg2 {[%clk 0:03:00]}  Bg7 {[%clk 0:02:58]} 4. O-O {[%clk 0:03:01]}  O-O {[%clk 0:02:59]} 5. d3 {[%clk 0:03:01]}  c5 {[%clk 0:02:59]} 6. c4 {[%clk 0:03:02]}  Nc6 {[%clk 0:02:58]} 7. Nc3 {[%clk 0:03:03]}  e5 {[%clk 0:02:56]} 8. Bd2 {[%clk 0:03:03]}  d6 {[%clk 0:02:56]} 9. Qc1 {[%clk 0:03:03]}  Ne8 {[%clk 0:02:26]} 10. Bh6 {[%clk 0:02:57]}  f5 {[%clk 0:02:25]} 11. Bxg7 {[%clk 0:02:58]}  Nxg7 {[%clk 0:02:25]} 12. Nd5 {[%clk 0:02:57]}  Ne6 {[%clk 0:02:23]} 13. a3 {[%clk 0:02:46]}  a5 {[%clk 0:02:20]} 14. Qd2 {[%clk 0:02:44]}  e4 {[%clk 0:01:49]} 15. Ne1 {[%clk 0:02:38]}  Ned4 {[%clk 0:01:46]} 16. Rb1 {[%clk 0:02:29]}  exd3 {[%clk 0:01:41]} 17. Nxd3 {[%clk 0:02:30]}  Re8 {[%clk 0:01:34]} 18. e3 {[%clk 0:02:30]}  Nb3 {[%clk 0:01:31]} 19. Qc3 {[%clk 0:02:25]}  a4 {[%clk 0:01:28]} 20. Nf6+ {[%clk 0:02:24]}  Kf7 {[%clk 0:01:28]} 21. Bd5+ {[%clk 0:02:21]}  Be6 {[%clk 0:01:28]} 22. Nxe8 {[%clk 0:02:21]}  Qxe8 {[%clk 0:01:26]} 23. Nf4 {[%clk 0:02:21]}  Bxd5 {[%clk 0:01:19]} 24. Nxd5 {[%clk 0:02:22]}  Ne5 {[%clk 0:01:20]} 25. Nc7 {[%clk 0:02:12]}  Nf3+ {[%clk 0:01:15]} 26. Kg2 {[%clk 0:01:17]}  Qe4 {[%clk 0:01:04]} 27. Rh1 {[%clk 0:00:35]}  Nh4+ {[%clk 0:00:53]} 28. Kh3 {[%clk 0:00:33]}  Qg4# {[%clk 0:00:52]} 0-1


[Site "https://www.chess.com"]

[Event "Titled Tuesday Blitz March 08 Early 2022"]
[White "Dubov, Daniil"]
[Black "Jaferian, Koosha"]
[WhiteFideId "24126055"]
[BlackFideId "12507440"]
[WhiteElo "2791"]
[BlackElo "2030"]
[Result "1-0"]
[Round "02"]
[TimeControl "180+1"]
[Date "2022.03.08"]
[WhiteClock "0:00:10"]
[BlackClock "0:00:04"]

1. d4 {[%clk 0:03:00]}  Nf6 {[%clk 0:02:59]} 2. Nf3 {[%clk 0:03:01]}  e6 {[%clk 0:02:59]} 3. c4 {[%clk 0:03:01]}  b6 {[%clk 0:02:59]} 4. g3 {[%clk 0:03:00]}  Ba6 {[%clk 0:02:59]} 5. Qc2 {[%clk 0:02:59]}  Bb4+ {[%clk 0:03:00]} 6. Nbd2 {[%clk 0:02:57]}  O-O {[%clk 0:02:49]} 7. Bg2 {[%clk 0:02:56]}  Bb7 {[%clk 0:02:49]} 8. O-O {[%clk 0:02:56]}  c5 {[%clk 0:02:43]} 9. d5 {[%clk 0:02:53]}  exd5 {[%clk 0:02:38]} 10. Nh4 {[%clk 0:02:52]}  Qc7 {[%clk 0:02:19]} 11. cxd5 {[%clk 0:02:49]}  Bxd5 {[%clk 0:02:13]} 12. Bxd5 {[%clk 0:02:21]}  Nxd5 {[%clk 0:02:13]} 13. Ndf3 {[%clk 0:02:07]}  c4 {[%clk 0:01:39]} 14. Rd1 {[%clk 0:01:52]}  Ne7 {[%clk 0:01:20]} 15. Bf4 {[%clk 0:01:44]}  d6 {[%clk 0:01:19]} 16. Rac1 {[%clk 0:01:33]}  b5 {[%clk 0:01:14]} 17. Ng5 {[%clk 0:01:01]}  Ng6 {[%clk 0:01:08]} 18. Qf5 {[%clk 0:00:45]}  Qd7 {[%clk 0:00:46]} 19. Nxg6 {[%clk 0:00:42]}  hxg6 {[%clk 0:00:39]} 20. Qd5 {[%clk 0:00:41]}  Qc6 {[%clk 0:00:34]} 21. Bxd6 {[%clk 0:00:35]}  Bxd6 {[%clk 0:00:27]} 22. Qxd6 {[%clk 0:00:33]}  Qxd6 {[%clk 0:00:21]} 23. Rxd6 {[%clk 0:00:32]}  a6 {[%clk 0:00:18]} 24. a4 {[%clk 0:00:22]}  Ra7 {[%clk 0:00:18]} 25. axb5 {[%clk 0:00:21]}  axb5 {[%clk 0:00:19]} 26. Rb6 {[%clk 0:00:21]}  Ra5 {[%clk 0:00:17]} 27. Rd1 {[%clk 0:00:20]}  Na6 {[%clk 0:00:17]} 28. Rd7 {[%clk 0:00:14]}  Nc5 {[%clk 0:00:18]} 29. Rc7 {[%clk 0:00:13]}  Nb3 {[%clk 0:00:15]} 30. Rbb7 {[%clk 0:00:13]}  Ra2 {[%clk 0:00:07]} 31. Nxf7 {[%clk 0:00:11]}  Re8 {[%clk 0:00:04]} 32. Ng5 {[%clk 0:00:10]}  Rd8 {[%clk 0:00:02]} 33. Rxg7+ {[%clk 0:00:09]}  Kh8 {[%clk 0:00:03]} 34. Rh7+ {[%clk 0:00:08]}  Kg8 {[%clk 0:00:03]} 35. Rbg7+ {[%clk 0:00:08]}  Kf8 {[%clk 0:00:04]} 36. Ne6+ {[%clk 0:00:09]}  Ke8 {[%clk 0:00:04]} 37. Rh8# {[%clk 0:00:10]} 1-0


[Site "https://www.chess.com"]

[Event "Titled Tuesday Blitz March 08 Early 2022"]
[White "Dushyant Sharma"]
[Black "Gedgafov, Chamal"]
[WhiteFideId "25065130"]
[BlackFideId "34130621"]
[WhiteElo "2105"]
[BlackElo "2030"]
[Result "1-0"]
[Round "02"]
[TimeControl "180+1"]
[Date "2022.03.09"]
[WhiteClock "0:02:17"]
[BlackClock "0:02:12"]

1. e4 {[%clk 0:03:00]}  e6 {[%clk 0:02:57]} 2. d4 {[%clk 0:03:00]}  d5 {[%clk 0:02:57]} 3. exd5 {[%clk 0:03:01]}  exd5 {[%clk 0:02:57]} 4. Bd3 {[%clk 0:03:01]}  c5 {[%clk 0:02:56]} 5. c3 {[%clk 0:03:01]}  c4 {[%clk 0:02:57]} 6. Bc2 {[%clk 0:03:01]}  Nf6 {[%clk 0:02:56]} 7. Nf3 {[%clk 0:03:01]}  Be7 {[%clk 0:02:57]} 8. O-O {[%clk 0:03:01]}  O-O {[%clk 0:02:57]} 9. Ne5 {[%clk 0:03:01]}  Nc6 {[%clk 0:02:57]} 10. f4 {[%clk 0:03:01]}  Ne4 {[%clk 0:02:54]} 11. Bxe4 {[%clk 0:02:57]}  dxe4 {[%clk 0:02:55]} 12. Nxc4 {[%clk 0:02:58]}  Be6 {[%clk 0:02:50]} 13. Ne3 {[%clk 0:02:56]}  Bd7 {[%clk 0:02:43]} 14. f5 {[%clk 0:02:55]}  f6 {[%clk 0:02:42]} 15. Nd2 {[%clk 0:02:55]}  Bd6 {[%clk 0:02:38]} 16. Nxe4 {[%clk 0:02:54]}  Bc7 {[%clk 0:02:38]} 17. Nc5 {[%clk 0:02:53]}  Re8 {[%clk 0:02:39]} 18. Qf3 {[%clk 0:02:46]}  b6 {[%clk 0:02:38]} 19. Nxd7 {[%clk 0:02:46]}  Qxd7 {[%clk 0:02:38]} 20. Bd2 {[%clk 0:02:46]}  Rad8 {[%clk 0:02:35]} 21. Rae1 {[%clk 0:02:46]}  Qd6 {[%clk 0:02:35]} 22. Qh3 {[%clk 0:02:44]}  Ne7 {[%clk 0:02:30]} 23. Ng4 {[%clk 0:02:42]}  Nd5 {[%clk 0:02:27]} 24. Re6 {[%clk 0:02:35]}  Qd7 {[%clk 0:02:23]} 25. Rfe1 {[%clk 0:02:34]}  Rxe6 {[%clk 0:02:18]} 26. fxe6 {[%clk 0:02:32]}  Qd6 {[%clk 0:02:16]} 27. Qh5 {[%clk 0:02:20]}  g6 {[%clk 0:02:12]} 28. Qxd5 {[%clk 0:02:17]} 1-0


[Site "https://www.chess.com"]